Organisation Name,Department where exp. Incurred,Service Category Label,Supplier (Beneficiary),Purpose of Expenditure,Procurement (Merchant) Category,Purchase Date,Settlement Date,Transaction Number,Net Amount (�)
Stockport MBC,Corporate and Support Services,Central Support Costs,MIRO.COM,Information and Communications Technology,Information Communication Technology  ,24.09.2020,16.10.2020,GPC09200000001,113.70
Stockport MBC,Corporate and Support Services,Central Support Costs,FASTHOSTS INTERNET,Information and Communications Technology,Information Communication Technology  ,19.09.2020,16.10.2020,GPC09200000002,30.00
Stockport MBC,Corporate and Support Services,Central Support Costs,FASTHOSTS INTERNET,Information and Communications Technology,Information Communication Technology  ,18.09.2020,16.10.2020,GPC09200000003,92.40
Stockport MBC,Corporate and Support Services,Central Support Costs,GITHUB,Information and Communications Technology,Information Communication Technology  ,14.09.2020,16.10.2020,GPC09200000004,80.66
Stockport MBC,Corporate and Support Services,Central Support Costs,WWW.CONTENTFUL.COM,Information and Communications Technology,Information Communication Technology  ,09.09.2020,16.10.2020,GPC09200000005,781.38
Stockport MBC,Corporate and Support Services,Central Support Costs,AWS EMEA,Information and Communications Technology,Information Communication Technology  ,06.09.2020,16.10.2020,GPC09200000006,"1,038.09"
Stockport MBC,Corporate and Support Services,Central Support Costs,AUTH0.COM,Information and Communications Technology,Information Communication Technology  ,05.09.2020,16.10.2020,GPC09200000007,156.26
Stockport MBC,Services to People,Childrens & Educational Services,ZOOM.US 888-799-9666,Information and Communications Technology,Information Communication Technology  ,30.09.2020,16.10.2020,GPC09200000008,119.90
Stockport MBC,Services to People,Childrens & Educational Services,CARTRIDGEPEOPLE.COM,Furniture and Equipment,Furniture & Soft Furnishings  ,30.09.2020,16.10.2020,GPC09200000009,232.42
Stockport MBC,Corporate and Support Services,Central Support Costs,FACEBK  QGY3MW6MG2,Office Expenses,Facilities & Management Services  ,30.09.2020,16.10.2020,GPC09200000010,36.22
Stockport MBC,Corporate and Support Services,Central Support Costs,FACEBK  KFDK53FLG2,Office Expenses,Facilities & Management Services  ,29.09.2020,16.10.2020,GPC09200000011,700.00
Stockport MBC,Corporate and Support Services,Central Support Costs,APPLE.COM/BILL,Information and Communications Technology,Information Communication Technology  ,26.09.2020,16.10.2020,GPC09200000012,5.83
Stockport MBC,Corporate and Support Services,Central Support Costs,WWW.CIPR.CO.UK,Publicity and Promotion,Facilities & Management Services  ,17.09.2020,16.10.2020,GPC09200000013,120.00
Stockport MBC,Corporate and Support Services,Central Support Costs,FASTHOSTS INTERNET,Information and Communications Technology,Information Communication Technology  ,09.09.2020,16.10.2020,GPC09200000014,10.00
Stockport MBC,Services to People,Childrens & Educational Services,ASDA STORES 4840,Catering Supplies,Catering Food & Beverages ,30.09.2020,16.10.2020,GPC09200000015,5.38
Stockport MBC,Services to People,Childrens & Educational Services,ASDA STORES 4840,Catering Supplies,Catering Food & Beverages ,28.09.2020,16.10.2020,GPC09200000016,18.19
Stockport MBC,Services to People,Childrens & Educational Services,ASDA STORES 4840,Catering Supplies,Catering Food & Beverages ,24.09.2020,16.10.2020,GPC09200000017,6.12
Stockport MBC,Services to People,Childrens & Educational Services,ASDA STORES 4840,Catering Supplies,Catering Food & Beverages ,23.09.2020,16.10.2020,GPC09200000018,3.48
Stockport MBC,Services to People,Childrens & Educational Services,ASDA STORES 4840,Catering Supplies,Catering Food & Beverages ,22.09.2020,16.10.2020,GPC09200000019,6.86
Stockport MBC,Services to People,Childrens & Educational Services,ASDA STORES 4840,Catering Supplies,Catering Food & Beverages ,21.09.2020,16.10.2020,GPC09200000020,11.64
Stockport MBC,Services to People,Childrens & Educational Services,ASDA STORES 4840,Catering Supplies,Catering Food & Beverages ,14.09.2020,16.10.2020,GPC09200000021,10.76
Stockport MBC,Services to People,Childrens & Educational Services,ASDA STORES 4840,Catering Supplies,Catering Food & Beverages ,11.09.2020,16.10.2020,GPC09200000022,4.56
Stockport MBC,Services to People,Childrens & Educational Services,AMZNMKTPLACE,Furniture and Equipment,Environmental Services Technical Equipment ,12.09.2020,16.10.2020,GPC09200000023,13.99
Stockport MBC,Services to People,Childrens & Educational Services,AMAZON.CO.UK YD59786E5,Furniture and Equipment,Furniture & Soft Furnishings  ,05.09.2020,16.10.2020,GPC09200000024,33.27
Stockport MBC,Services to People,Childrens & Educational Services,WWW.INSTANTPRINT.C,Furniture and Equipment,Environmental Services Technical Equipment ,03.09.2020,16.10.2020,GPC09200000025,504.00
Stockport MBC,Services to Place,Cultural & Related Services,AMZNMKTPLACE,Repairs and Maintenance,"Works - Construction, Repair & Maintenance  ",07.09.2020,16.10.2020,GPC09200000026,46.28
Stockport MBC,Services to People,Childrens & Educational Services,GOOGLE  ADS8179771860,Office Expenses,Facilities & Management Services  ,01.10.2020,16.10.2020,GPC09200000027,500.00
Stockport MBC,Services to People,Childrens & Educational Services,GOOGLE  ADS8179771860,Office Expenses,Facilities & Management Services  ,19.09.2020,16.10.2020,GPC09200000028,500.00
Stockport MBC,Services to People,Childrens & Educational Services,GOOGLE  ADS8179771860,Office Expenses,Facilities & Management Services  ,07.09.2020,16.10.2020,GPC09200000029,500.00
Stockport MBC,Services to People,Childrens & Educational Services,AMZNMKTPLACE,Furniture and Equipment,Furniture & Soft Furnishings  ,29.09.2020,16.10.2020,GPC09200000030,26.00
Stockport MBC,Services to People,Childrens & Educational Services,AMZNMKTPLACE,Furniture and Equipment,Furniture & Soft Furnishings  ,28.09.2020,16.10.2020,GPC09200000031,27.95
Stockport MBC,Services to People,Childrens & Educational Services,IMPERIAL LONDON HOTELS,Staff Training,Human Resources  ,16.09.2020,16.10.2020,GPC09200000032,-450.00
Stockport MBC,Services to People,Childrens & Educational Services,AMZNMKTPLACE AMAZON.CO,Office Expenses,Stationery    ,15.09.2020,16.10.2020,GPC09200000033,13.58
Stockport MBC,Services to People,Childrens & Educational Services,AMAZON PRIME MO7F79SL5,Furniture and Equipment,Furniture & Soft Furnishings  ,13.09.2020,16.10.2020,GPC09200000034,7.99
Stockport MBC,Services to People,Childrens & Educational Services,AMZNMKTPLACE,Furniture and Equipment,Furniture & Soft Furnishings  ,09.09.2020,16.10.2020,GPC09200000035,12.99
Stockport MBC,Services to People,Childrens & Educational Services,WM MORRISONS STORE,Catering Supplies,Catering Food & Beverages ,01.10.2020,16.10.2020,GPC09200000036,6.34
Stockport MBC,Services to People,Childrens & Educational Services,WM MORRISONS STORE,Catering Supplies,Catering Food & Beverages ,30.09.2020,16.10.2020,GPC09200000037,16.18
Stockport MBC,Services to People,Childrens & Educational Services,WM MORRISONS STORE,Catering Supplies,Catering Food & Beverages ,29.09.2020,16.10.2020,GPC09200000038,5.30
Stockport MBC,Services to People,Childrens & Educational Services,WM MORRISONS STORE,Catering Supplies,Catering Food & Beverages ,28.09.2020,16.10.2020,GPC09200000039,7.30
Stockport MBC,Services to People,Childrens & Educational Services,WM MORRISONS STORE,Catering Supplies,Catering Food & Beverages ,28.09.2020,16.10.2020,GPC09200000040,15.03
Stockport MBC,Services to People,Childrens & Educational Services,AMZNMKTPLACE,Furniture and Equipment,Environmental Services Technical Equipment ,28.09.2020,16.10.2020,GPC09200000041,125.89
Stockport MBC,Services to People,Childrens & Educational Services,WM MORRISONS STORE,Catering Supplies,Catering Food & Beverages ,24.09.2020,16.10.2020,GPC09200000042,5.90
Stockport MBC,Services to People,Childrens & Educational Services,WM MORRISONS STORE,Catering Supplies,Catering Food & Beverages ,23.09.2020,16.10.2020,GPC09200000043,22.55
Stockport MBC,Services to People,Childrens & Educational Services,WM MORRISONS STORE,Furniture and Equipment,Environmental Services Technical Equipment ,22.09.2020,16.10.2020,GPC09200000044,10.00
Stockport MBC,Services to People,Childrens & Educational Services,THE WIZARD TEA ROO,Fees and Charges,Education  ,17.09.2020,16.10.2020,GPC09200000045,15.30
Stockport MBC,Services to People,Childrens & Educational Services,ASDA GROCERIES ONLINE,Catering Supplies,Catering Food & Beverages ,17.09.2020,16.10.2020,GPC09200000046,68.23
Stockport MBC,Services to People,Childrens & Educational Services,WWW.BLACKWELL.CO.UK,Furniture and Equipment,Environmental Services Technical Equipment ,14.09.2020,16.10.2020,GPC09200000047,22.99
Stockport MBC,Services to People,Childrens & Educational Services,WM MORRISONS STORE,Catering Supplies,Catering Food & Beverages ,16.09.2020,16.10.2020,GPC09200000048,23.17
Stockport MBC,Services to People,Childrens & Educational Services,WM MORRISONS STORE,Catering Supplies,Catering Food & Beverages ,10.09.2020,16.10.2020,GPC09200000049,9.46
Stockport MBC,Services to People,Childrens & Educational Services,WM MORRISONS STORE,Catering Supplies,Catering Food & Beverages ,09.09.2020,16.10.2020,GPC09200000050,19.26
Stockport MBC,Services to People,Childrens & Educational Services,ASDA GROCERIES ONLINE,Catering Supplies,Catering Food & Beverages ,07.09.2020,16.10.2020,GPC09200000051,62.15
Stockport MBC,Services to People,Childrens & Educational Services,ASDA GROCERIES ONLINE,Catering Supplies,Catering Food & Beverages ,07.09.2020,16.10.2020,GPC09200000052,-1.30
Stockport MBC,Services to People,Childrens & Educational Services,NATIONAL TRUST MEM,Fees and Charges,Education  ,07.09.2020,16.10.2020,GPC09200000053,50.00
Stockport MBC,Services to People,Childrens & Educational Services,WM MORRISONS STORE,Furniture and Equipment,Environmental Services Technical Equipment ,02.09.2020,16.10.2020,GPC09200000054,15.00
Stockport MBC,Services to People,Childrens & Educational Services,B&M 518 - EDGELEY,Furniture and Equipment,Environmental Services Technical Equipment ,02.09.2020,16.10.2020,GPC09200000055,4.00
Stockport MBC,Services to People,Childrens & Educational Services,WM MORRISONS STORE,Catering Supplies,Catering Food & Beverages ,02.09.2020,16.10.2020,GPC09200000056,17.70
Stockport MBC,Corporate and Support Services,Corporate & Democratic Core,AMZNMKTPLACE,Furniture and Equipment,Environmental Services Technical Equipment ,25.09.2020,16.10.2020,GPC09200000057,91.93
Stockport MBC,Corporate and Support Services,Corporate & Democratic Core,WWW.ICO.ORG.UK,Expenses and Allowances,UNCLASSIFIED  ,08.09.2020,16.10.2020,GPC09200000058,"2,900.00"
Stockport MBC,Corporate and Support Services,Central Support Costs,AMZNMKTPLACE,Office Expenses,Stationery    ,05.09.2020,16.10.2020,GPC09200000059,29.95
Stockport MBC,Corporate and Support Services,Corporate & Democratic Core,WWW.ICO.ORG.UK,Expenses and Allowances,UNCLASSIFIED  ,02.09.2020,16.10.2020,GPC09200000060,40.00
Stockport MBC,Services to People,Adult Social Care,LIDL GB STOCKPORT,Catering Supplies,Catering Food & Beverages ,30.09.2020,16.10.2020,GPC09200000061,7.70
Stockport MBC,Services to People,Adult Social Care,ALDI 84 773,Catering Supplies,Catering Food & Beverages ,23.09.2020,16.10.2020,GPC09200000062,7.78
Stockport MBC,Services to People,Adult Social Care,ALDI 84 773,Catering Supplies,Catering Food & Beverages ,16.09.2020,16.10.2020,GPC09200000063,15.96
Stockport MBC,Services to People,Adult Social Care,ASDA GROCERIES ONLINE,Catering Supplies,Catering Food & Beverages ,27.09.2020,16.10.2020,GPC09200000064,45.19
Stockport MBC,Services to People,Adult Social Care,ASDA GROCERIES ONLINE,Catering Supplies,Catering Food & Beverages ,20.09.2020,16.10.2020,GPC09200000065,56.97
Stockport MBC,Services to People,Adult Social Care,ASDA GROCERIES ONLINE,Catering Supplies,Catering Food & Beverages ,13.09.2020,16.10.2020,GPC09200000066,54.63
Stockport MBC,Services to People,Adult Social Care,ASDA GROCERIES ONLINE,Catering Supplies,Catering Food & Beverages ,06.09.2020,16.10.2020,GPC09200000067,44.22
Stockport MBC,Services to People,Childrens & Educational Services,AMAZON PRIME E68056LD5,Office Expenses,Stationery    ,18.09.2020,16.10.2020,GPC09200000068,7.99
Stockport MBC,Services to People,Childrens & Educational Services,ANNA FREUD CENTRE,Staff Training,Human Resources  ,15.09.2020,16.10.2020,GPC09200000069,49.99
Stockport MBC,Services to People,Childrens & Educational Services,AMZNMKTPLACE,Office Expenses,Stationery    ,02.09.2020,16.10.2020,GPC09200000070,49.97
Stockport MBC,Services to Place,Childrens & Educational Services,AMZNMKTPLACE,COVID 19,COVID 19,07.09.2020,16.10.2020,GPC09200000071,84.71
Stockport MBC,Services to Place,Childrens & Educational Services,AMZ ANSIO DIRECT,COVID 19,COVID 19,05.09.2020,16.10.2020,GPC09200000072,-4.99
Stockport MBC,Services to Place,Childrens & Educational Services,AMZNMKTPLACE,COVID 19,COVID 19,04.09.2020,16.10.2020,GPC09200000073,61.94
Stockport MBC,Services to Place,Childrens & Educational Services,AMAZON.CO.UK 2Q9TY1L25,COVID 19,COVID 19,02.09.2020,16.10.2020,GPC09200000074,34.49
Stockport MBC,Services to People,Childrens & Educational Services,AMZ SENIOR BROTHER,Furniture and Equipment,Environmental Services Technical Equipment ,18.09.2020,16.10.2020,GPC09200000075,-39.49
Stockport MBC,Services to People,Childrens & Educational Services,AMZNMKTPLACE AMAZON.CO,Furniture and Equipment,Environmental Services Technical Equipment ,16.09.2020,16.10.2020,GPC09200000076,67.47
Stockport MBC,Services to People,Childrens & Educational Services,WM MORRISONS STORE,Catering Supplies,Catering Food & Beverages ,07.09.2020,16.10.2020,GPC09200000077,29.42
Stockport MBC,Services to People,Childrens & Educational Services,AMZNMKTPLACE,Furniture and Equipment,Environmental Services Technical Equipment ,04.09.2020,16.10.2020,GPC09200000078,112.92
Stockport MBC,Corporate and Support Services,Planning Services,ASDA SUPERSTORE,COVID 19,COVID 19,18.09.2020,16.10.2020,GPC09200000079,350.00
Stockport MBC,Services to People,Childrens & Educational Services,PEARSON ED LTD,Library Equipment,Education Library Books ,28.09.2020,16.10.2020,GPC09200000080,5.00
Stockport MBC,Services to People,Childrens & Educational Services,COMMUNICATE-ED,Staff Training,Human Resources  ,25.09.2020,16.10.2020,GPC09200000081,85.00
Stockport MBC,Services to People,Childrens & Educational Services,PAYPAL  MILLIESTRUS,Staff Training,Human Resources  ,21.09.2020,16.10.2020,GPC09200000082,160.00
Stockport MBC,Services to People,Childrens & Educational Services,AMAZON.CO.UK 5K1JJ3505,Library Equipment,Education Library Books ,20.09.2020,16.10.2020,GPC09200000083,71.09
Stockport MBC,Services to People,Childrens & Educational Services,TEACHENGLISH.CO.UK,Staff Training,Human Resources  ,19.09.2020,16.10.2020,GPC09200000084,55.00
Stockport MBC,Services to People,Childrens & Educational Services,TVLICENSING.CO.UK,Fees and Charges,"Works - Construction, Repair & Maintenance  ",16.09.2020,16.10.2020,GPC09200000085,157.50
Stockport MBC,Services to People,Childrens & Educational Services,POST OFFICE COUNTER,Office Expenses,Mail Services�  ,11.09.2020,16.10.2020,GPC09200000086,3.10
Stockport MBC,Services to People,Childrens & Educational Services,AMAZON.CO.UK MV5I409X5,Furniture and Equipment,Furniture & Soft Furnishings  ,09.09.2020,16.10.2020,GPC09200000087,18.96
Stockport MBC,Services to People,Childrens & Educational Services,POST OFFICE COUNTER,Office Expenses,Mail Services�  ,07.09.2020,16.10.2020,GPC09200000088,31.32
Stockport MBC,Services to People,Childrens & Educational Services,AMZNMKTPLACE AMAZON.CO,Furniture and Equipment,Furniture & Soft Furnishings  ,07.09.2020,16.10.2020,GPC09200000089,6.99
Stockport MBC,Services to People,Childrens & Educational Services,AMZNMKTPLACE,Furniture and Equipment,Furniture & Soft Furnishings  ,06.09.2020,16.10.2020,GPC09200000090,20.62
Stockport MBC,Services to People,Childrens & Educational Services,ASDA STORES 4840,Catering Supplies,Catering Food & Beverages ,01.10.2020,16.10.2020,GPC09200000091,3.00
Stockport MBC,Services to People,Childrens & Educational Services,ASDA STORES 4840,Cleaning,Cleaning & Janitorial  ,30.09.2020,16.10.2020,GPC09200000092,15.20
Stockport MBC,Services to People,Childrens & Educational Services,ALDI 40 773,Cleaning,Cleaning & Janitorial  ,30.09.2020,16.10.2020,GPC09200000093,75.46
Stockport MBC,Services to People,Childrens & Educational Services,TFGM,Travelling Expenses,Human Resources Travel & Subsistence ,23.09.2020,16.10.2020,GPC09200000094,10.00
Stockport MBC,Services to People,Childrens & Educational Services,TFGM,Travelling Expenses,Human Resources Travel & Subsistence ,22.09.2020,16.10.2020,GPC09200000095,10.00
Stockport MBC,Services to People,Childrens & Educational Services,ASDA STORES 4840,Catering Supplies,Catering Food & Beverages ,17.09.2020,16.10.2020,GPC09200000096,15.87
Stockport MBC,Services to People,Childrens & Educational Services,B&M 570 - CLARKWAYHYDE,Cleaning,Cleaning & Janitorial  ,16.09.2020,16.10.2020,GPC09200000097,-7.00
Stockport MBC,Services to People,Childrens & Educational Services,B&M 570 - CLARKWAYHYDE,Cleaning,Cleaning & Janitorial  ,11.09.2020,16.10.2020,GPC09200000098,15.99
Stockport MBC,Services to People,Childrens & Educational Services,TESCO STORES 3378,Cleaning,Cleaning & Janitorial  ,09.09.2020,16.10.2020,GPC09200000099,35.97
Stockport MBC,Services to People,Childrens & Educational Services,HOMEBASE LTD,Cleaning,Cleaning & Janitorial  ,07.09.2020,16.10.2020,GPC09200000100,24.00
Stockport MBC,Services to People,Childrens & Educational Services,THE RANGE,COVID 19,COVID 19,02.09.2020,16.10.2020,GPC09200000101,21.97
Stockport MBC,Services to People,Childrens & Educational Services,HOME BARGAINS,COVID 19,COVID 19,02.09.2020,16.10.2020,GPC09200000102,19.07
Stockport MBC,Services to People,Childrens & Educational Services,B&M 261 - STOCKPORT,Furniture and Equipment,Furniture & Soft Furnishings  ,02.09.2020,16.10.2020,GPC09200000103,18.76
Stockport MBC,Services to People,Childrens & Educational Services,TRAVELODGE GB0000,Care Payments,Social Community Care Supplies & Services  ,01.10.2020,16.10.2020,GPC09200000104,444.90
Stockport MBC,Services to People,Childrens & Educational Services,AMAZON PRIME E788C0NW5,Furniture and Equipment,Environmental Services Technical Equipment ,29.09.2020,16.10.2020,GPC09200000105,7.99
Stockport MBC,Services to People,Childrens & Educational Services,WWW.PONTINS.CO.UK,Care Payments,Social Community Care Supplies & Services  ,28.09.2020,16.10.2020,GPC09200000106,59.00
Stockport MBC,Services to People,Childrens & Educational Services,ZOOM.US 888-799-9666,Furniture and Equipment,Furniture & Soft Furnishings  ,26.09.2020,16.10.2020,GPC09200000107,14.39
Stockport MBC,Services to People,Childrens & Educational Services,AMZNMKTPLACE,Furniture and Equipment,Furniture & Soft Furnishings  ,25.09.2020,16.10.2020,GPC09200000108,131.68
Stockport MBC,Services to People,Childrens & Educational Services,ARGOS LTD,Furniture and Equipment,Environmental Services Technical Equipment ,24.09.2020,16.10.2020,GPC09200000109,53.90
Stockport MBC,Services to People,Childrens & Educational Services,STOCKPORT MBC DOM,Furniture and Equipment,Environmental Services Technical Equipment ,24.09.2020,16.10.2020,GPC09200000110,12.00
Stockport MBC,Services to People,Childrens & Educational Services,BRITANNIA,Care Payments,Social Community Care Supplies & Services  ,18.09.2020,16.10.2020,GPC09200000111,-90.00
Stockport MBC,Services to People,Childrens & Educational Services,BRITANNIA,Care Payments,Social Community Care Supplies & Services  ,18.09.2020,16.10.2020,GPC09200000112,285.00
Stockport MBC,Services to People,Childrens & Educational Services,TRAINLINE,Travelling Expenses,Human Resources Travel & Subsistence ,17.09.2020,16.10.2020,GPC09200000113,53.62
Stockport MBC,Services to People,Childrens & Educational Services,ARRIVA RAIL NORTH,Travelling Expenses,Human Resources Travel & Subsistence ,16.09.2020,16.10.2020,GPC09200000114,35.00
Stockport MBC,Services to People,Childrens & Educational Services,AMAZON.CO.UK TI3RP1DN5,Furniture and Equipment,Furniture & Soft Furnishings  ,10.09.2020,16.10.2020,GPC09200000115,359.80
Stockport MBC,Services to People,Childrens & Educational Services,1 AND 1 IONOS LTD,Information and Communications Technology,Information Communication Technology  ,27.09.2020,16.10.2020,GPC09200000116,1.20
Stockport MBC,Services to People,Childrens & Educational Services,STOCKPORT MBC DOM,Care Payments,Social Community Care Supplies & Services  ,24.09.2020,16.10.2020,GPC09200000117,"1,070.00"
Stockport MBC,Services to People,Childrens & Educational Services,STOCKPORT MBC DOM,Care Payments,Social Community Care Supplies & Services  ,23.09.2020,16.10.2020,GPC09200000118,990.65
Stockport MBC,Services to People,Childrens & Educational Services,ARGOS LTD,Furniture and Equipment,Furniture & Soft Furnishings  ,11.09.2020,16.10.2020,GPC09200000119,63.95
Stockport MBC,Services to People,Childrens & Educational Services,ZOOM.US 888-799-9666,Information and Communications Technology,Information Communication Technology  ,11.09.2020,16.10.2020,GPC09200000120,11.99
Stockport MBC,Services to People,Childrens & Educational Services,TRAINLINE,Care Payments,Social Community Care Supplies & Services  ,04.09.2020,16.10.2020,GPC09200000121,52.35
Stockport MBC,Services to People,Childrens & Educational Services,PONTINS CALL CENTRE,Care Payments,Social Community Care Supplies & Services  ,03.09.2020,16.10.2020,GPC09200000122,562.00
Stockport MBC,Services to People,Childrens & Educational Services,IZ  NONE,Care Payments,Social Community Care Supplies & Services  ,03.09.2020,16.10.2020,GPC09200000123,65.00
Stockport MBC,Services to People,Childrens & Educational Services,WWW.ADASS.ORG.UK,Expenses and Allowances,Human Resources Training & Conferences ,07.09.2020,16.10.2020,GPC09200000124,120.00
Stockport MBC,Services to People,Childrens & Educational Services,PAYPAL  PAMS ASSESS,Staff Training,Human Resources  ,04.09.2020,16.10.2020,GPC09200000125,504.00
Stockport MBC,Services to People,Childrens & Educational Services,HOME BARGAINS,Furniture and Equipment,Environmental Services Technical Equipment ,28.09.2020,16.10.2020,GPC09200000126,10.54
Stockport MBC,Services to People,Childrens & Educational Services,WM MORRISONS STORE,Catering Supplies,Catering Food & Beverages ,28.09.2020,16.10.2020,GPC09200000127,30.28
Stockport MBC,Services to People,Childrens & Educational Services,ALDI 40 773,Catering Supplies,Catering Food & Beverages ,25.09.2020,16.10.2020,GPC09200000128,19.42
Stockport MBC,Services to People,Childrens & Educational Services,ALDI 40 773,Catering Supplies,Catering Food & Beverages ,21.09.2020,16.10.2020,GPC09200000129,45.16
Stockport MBC,Services to People,Childrens & Educational Services,WM MORRISONS STORE,Catering Supplies,Catering Food & Beverages ,14.09.2020,16.10.2020,GPC09200000130,47.95
Stockport MBC,Services to People,Childrens & Educational Services,WM MORRISONS STORE,Catering Supplies,Catering Food & Beverages ,03.09.2020,16.10.2020,GPC09200000131,66.57
Stockport MBC,Services to People,Childrens & Educational Services,AHUJA AND BROTHERS UK,Catering Supplies,Catering Food & Beverages ,30.09.2020,16.10.2020,GPC09200000132,2.79
Stockport MBC,Services to People,Childrens & Educational Services,TOTAL NINJA MANCHESTER,Publicity and Promotion,Arts & Leisure Services  ,30.09.2020,16.10.2020,GPC09200000133,6.00
Stockport MBC,Services to People,Childrens & Educational Services,TOTAL NINJA MANCHESTER,Publicity and Promotion,Arts & Leisure Services  ,30.09.2020,16.10.2020,GPC09200000134,21.50
Stockport MBC,Services to People,Childrens & Educational Services,NYA V LOCKERS UK,Publicity and Promotion,Arts & Leisure Services  ,30.09.2020,16.10.2020,GPC09200000135,1.00
Stockport MBC,Services to People,Childrens & Educational Services,TESCO PAY AT PUMP 4032,Fuel,Vehicle Management Fuel ,29.09.2020,16.10.2020,GPC09200000136,20.00
Stockport MBC,Services to People,Childrens & Educational Services,ASDA STORE 4422,Catering Supplies,Catering Food & Beverages ,28.09.2020,16.10.2020,GPC09200000137,10.20
Stockport MBC,Services to People,Childrens & Educational Services,TOTAL NINJA MANCHESTER,Publicity and Promotion,Arts & Leisure Services  ,28.09.2020,16.10.2020,GPC09200000138,3.60
Stockport MBC,Services to People,Childrens & Educational Services,TOTAL NINJA MANCHESTER,Publicity and Promotion,Arts & Leisure Services  ,28.09.2020,16.10.2020,GPC09200000139,23.00
Stockport MBC,Services to People,Childrens & Educational Services,NYA V LOCKERS UK,Publicity and Promotion,Arts & Leisure Services  ,28.09.2020,16.10.2020,GPC09200000140,1.00
Stockport MBC,Services to People,Childrens & Educational Services,TGI FRIDAY'S,Publicity and Promotion,Arts & Leisure Services  ,27.09.2020,16.10.2020,GPC09200000141,56.39
Stockport MBC,Services to People,Childrens & Educational Services,IZ  WOODHEADS CAFE,Publicity and Promotion,Arts & Leisure Services  ,26.09.2020,16.10.2020,GPC09200000142,23.00
Stockport MBC,Services to People,Childrens & Educational Services,SOUTH PIER,Publicity and Promotion,Arts & Leisure Services  ,26.09.2020,16.10.2020,GPC09200000143,15.00
Stockport MBC,Services to People,Childrens & Educational Services,BLACKPOOL PLEASURE,Publicity and Promotion,Arts & Leisure Services  ,26.09.2020,16.10.2020,GPC09200000144,84.00
Stockport MBC,Services to People,Childrens & Educational Services,ASDA  PETROL- UPT 4169,Cleaning,Cleaning & Janitorial  ,21.09.2020,16.10.2020,GPC09200000145,58.49
Stockport MBC,Services to People,Childrens & Educational Services,HAVEN FAST FOODS LIMIT,Publicity and Promotion,Arts & Leisure Services  ,20.09.2020,16.10.2020,GPC09200000146,14.35
Stockport MBC,Services to People,Childrens & Educational Services,HAVEN FAST FOODS LIMIT,Publicity and Promotion,Arts & Leisure Services  ,20.09.2020,16.10.2020,GPC09200000147,9.95
Stockport MBC,Services to People,Childrens & Educational Services,SOUTH PIER,Publicity and Promotion,Arts & Leisure Services  ,20.09.2020,16.10.2020,GPC09200000148,11.00
Stockport MBC,Services to People,Childrens & Educational Services,PLEASURE BEACH,Publicity and Promotion,Arts & Leisure Services  ,20.09.2020,16.10.2020,GPC09200000149,7.60
Stockport MBC,Services to People,Childrens & Educational Services,PLEASURE BEACH,Publicity and Promotion,Arts & Leisure Services  ,20.09.2020,16.10.2020,GPC09200000150,2.80
Stockport MBC,Services to People,Childrens & Educational Services,PLEASURE BEACH,Publicity and Promotion,Arts & Leisure Services  ,20.09.2020,16.10.2020,GPC09200000151,21.00
Stockport MBC,Services to People,Childrens & Educational Services,PLEASURE BEACH,Publicity and Promotion,Arts & Leisure Services  ,20.09.2020,16.10.2020,GPC09200000152,7.00
Stockport MBC,Services to People,Childrens & Educational Services,BLACKPOOL PLEASURE BEA,Publicity and Promotion,Arts & Leisure Services  ,20.09.2020,16.10.2020,GPC09200000153,18.00
Stockport MBC,Services to People,Childrens & Educational Services,PIZZA HUT,Catering Supplies,Catering Food & Beverages ,19.09.2020,16.10.2020,GPC09200000154,37.17
Stockport MBC,Services to People,Childrens & Educational Services,SOUTH PIER,Publicity and Promotion,Arts & Leisure Services  ,19.09.2020,16.10.2020,GPC09200000155,21.00
Stockport MBC,Services to People,Childrens & Educational Services,BLACKPOOL PLEASURE BEA,Publicity and Promotion,Arts & Leisure Services  ,19.09.2020,16.10.2020,GPC09200000156,18.00
Stockport MBC,Services to People,Childrens & Educational Services,SPORTSDIRECT 332,Care Payments,Social Community Care Supplies & Services  ,19.09.2020,16.10.2020,GPC09200000157,103.99
Stockport MBC,Services to People,Childrens & Educational Services,BURGER KING 319,Catering Supplies,Catering Food & Beverages ,19.09.2020,16.10.2020,GPC09200000158,19.27
Stockport MBC,Services to People,Childrens & Educational Services,SOUTH PIER,Publicity and Promotion,Arts & Leisure Services  ,18.09.2020,16.10.2020,GPC09200000159,9.95
Stockport MBC,Services to People,Childrens & Educational Services,NICE AND TASTY,Catering Supplies,Catering Food & Beverages ,18.09.2020,16.10.2020,GPC09200000160,9.50
Stockport MBC,Services to People,Childrens & Educational Services,NEWTON HALL SHOP,Publicity and Promotion,Arts & Leisure Services  ,18.09.2020,16.10.2020,GPC09200000161,21.94
Stockport MBC,Services to People,Childrens & Educational Services,POST OFFICE COUNTER,Office Expenses,Mail Services�  ,18.09.2020,16.10.2020,GPC09200000162,11.04
Stockport MBC,Services to People,Childrens & Educational Services,SOUTH PIER,Publicity and Promotion,Arts & Leisure Services  ,18.09.2020,16.10.2020,GPC09200000163,20.00
Stockport MBC,Services to People,Childrens & Educational Services,BLACKPOOL PLEASURE,Publicity and Promotion,Arts & Leisure Services  ,11.09.2020,16.10.2020,GPC09200000164,105.00
Stockport MBC,Services to People,Childrens & Educational Services,KINOS CHINESE,Catering Supplies,Catering Food & Beverages ,09.09.2020,16.10.2020,GPC09200000165,51.70
Stockport MBC,Services to People,Childrens & Educational Services,CAPITA RECRUITMENT VET,Fees and Charges,UNCLASSIFIED  ,07.09.2020,16.10.2020,GPC09200000166,48.10
Stockport MBC,Services to People,Childrens & Educational Services,LIGHT CINEMAS LTD,Publicity and Promotion,Arts & Leisure Services  ,06.09.2020,16.10.2020,GPC09200000167,28.65
Stockport MBC,Services to People,Childrens & Educational Services,CINEWORLD MAN CP,Publicity and Promotion,Arts & Leisure Services  ,06.09.2020,16.10.2020,GPC09200000168,25.00
Stockport MBC,Services to People,Childrens & Educational Services,MCDONALDS,Catering Supplies,Catering Food & Beverages ,06.09.2020,16.10.2020,GPC09200000169,7.10
Stockport MBC,Services to People,Childrens & Educational Services,MCDONALDS,Catering Supplies,Catering Food & Beverages ,06.09.2020,16.10.2020,GPC09200000170,9.96
Stockport MBC,Services to People,Childrens & Educational Services,CINEWORLD,Publicity and Promotion,Arts & Leisure Services  ,06.09.2020,16.10.2020,GPC09200000171,28.75
Stockport MBC,Services to People,Childrens & Educational Services,ARGOS LTD,Care Payments,Social Community Care Supplies & Services  ,06.09.2020,16.10.2020,GPC09200000172,33.95
Stockport MBC,Services to People,Childrens & Educational Services,ARGOS LTD,Care Payments,Social Community Care Supplies & Services  ,06.09.2020,16.10.2020,GPC09200000173,83.95
Stockport MBC,Services to People,Childrens & Educational Services,ARGOS LTD,Care Payments,Social Community Care Supplies & Services  ,06.09.2020,16.10.2020,GPC09200000174,194.95
Stockport MBC,Services to People,Childrens & Educational Services,CINEWORLD MAN CP,Publicity and Promotion,Arts & Leisure Services  ,06.09.2020,16.10.2020,GPC09200000175,-28.75
Stockport MBC,Services to People,Childrens & Educational Services,AMAZON PRIME XK8NP2AL5,Care Payments,Social Community Care Supplies & Services  ,05.09.2020,16.10.2020,GPC09200000176,7.99
Stockport MBC,Services to People,Childrens & Educational Services,HALFORDS ON LINE,Repairs and Maintenance,"Works - Construction, Repair & Maintenance  ",05.09.2020,16.10.2020,GPC09200000177,58.40
Stockport MBC,Services to People,Childrens & Educational Services,JUST EAT,Catering Supplies,Catering Food & Beverages ,05.09.2020,16.10.2020,GPC09200000178,53.60
Stockport MBC,Services to People,Childrens & Educational Services,SCREWFIX DIRECT,Repairs and Maintenance,"Works - Construction, Repair & Maintenance  ",04.09.2020,16.10.2020,GPC09200000179,21.98
Stockport MBC,Services to People,Childrens & Educational Services,AMZNMKTPLACE AMAZON.CO,Care Payments,Social Community Care Supplies & Services  ,04.09.2020,16.10.2020,GPC09200000180,9.99
Stockport MBC,Services to People,Childrens & Educational Services,DISNEY PLUS,Fees and Charges,Financial Services  ,03.09.2020,16.10.2020,GPC09200000181,5.99
Stockport MBC,Services to People,Childrens & Educational Services,AMZNMKTPLACE,Furniture and Equipment,Environmental Services Technical Equipment ,02.10.2020,16.10.2020,GPC09200000182,28.50
Stockport MBC,Services to People,Childrens & Educational Services,MCDONALDS UK,Catering Supplies,Catering Food & Beverages ,30.09.2020,16.10.2020,GPC09200000183,48.93
Stockport MBC,Services to People,Childrens & Educational Services,AMZNMKTPLACE,Furniture and Equipment,Environmental Services Technical Equipment ,28.09.2020,16.10.2020,GPC09200000184,45.19
Stockport MBC,Services to People,Childrens & Educational Services,AMZNMKTPLACE AMAZON.CO,Furniture and Equipment,Environmental Services Technical Equipment ,27.09.2020,16.10.2020,GPC09200000185,69.20
Stockport MBC,Services to People,Childrens & Educational Services,WWW.LOCKANDKEY.CO.UK,Repairs and Maintenance,"Works - Construction, Repair & Maintenance  ",25.09.2020,16.10.2020,GPC09200000186,15.95
Stockport MBC,Services to People,Childrens & Educational Services,AMZNMKTPLACE AMAZON.CO,Furniture and Equipment,Environmental Services Technical Equipment ,23.09.2020,16.10.2020,GPC09200000187,18.70
Stockport MBC,Services to People,Childrens & Educational Services,AMZNMKTPLACE AMAZON.CO,Furniture and Equipment,Environmental Services Technical Equipment ,23.09.2020,16.10.2020,GPC09200000188,17.78
Stockport MBC,Services to People,Childrens & Educational Services,AMZNMKTPLACE AMAZON.CO,Furniture and Equipment,Environmental Services Technical Equipment ,22.09.2020,16.10.2020,GPC09200000189,55.89
Stockport MBC,Services to People,Childrens & Educational Services,AMZNMKTPLACE,Furniture and Equipment,Environmental Services Technical Equipment ,21.09.2020,16.10.2020,GPC09200000190,35.42
Stockport MBC,Services to People,Adult Social Care,GIFTFINDER LTD,COVID 19,COVID 19,11.09.2020,16.10.2020,GPC09200000191,"2,052.00"
Stockport MBC,Corporate and Support Services,Cultural & Related Services,AMAZON.CO.UK R05IU1HZ5,Library Equipment,Education Library Books ,30.09.2020,16.10.2020,GPC09200000192,51.96
Stockport MBC,Services to People,Adult Social Care,ALDI 84 773,Catering Supplies,Catering Food & Beverages ,10.09.2020,16.10.2020,GPC09200000193,9.93
Stockport MBC,Corporate and Support Services,Planning Services,B & Q 1279,Office Expenses,Stationery    ,22.09.2020,16.10.2020,GPC09200000194,19.96
Stockport MBC,Corporate and Support Services,Planning Services,POST OFFICE COUNTER,Office Expenses,Mail Services�  ,22.09.2020,16.10.2020,GPC09200000195,41.04
Stockport MBC,Services to People,Childrens & Educational Services,AMZNMKTPLACE AMAZON.CO,Furniture and Equipment,Environmental Services Technical Equipment ,10.09.2020,16.10.2020,GPC09200000196,49.21
Stockport MBC,Services to People,Childrens & Educational Services,AMZNMKTPLACE,Furniture and Equipment,Environmental Services Technical Equipment ,07.09.2020,16.10.2020,GPC09200000197,16.21
Stockport MBC,Services to People,Childrens & Educational Services,AMZNMKTPLACE,Furniture and Equipment,Environmental Services Technical Equipment ,06.09.2020,16.10.2020,GPC09200000198,39.99
Stockport MBC,Services to People,Childrens & Educational Services,SP   THE PANIC ROOM ON,Publicity and Promotion,Arts & Leisure Services  ,03.09.2020,16.10.2020,GPC09200000199,10.00
Stockport MBC,Services to Place,Highways & Transport Services,MENTIMETER,Staff Training,Human Resources  ,01.10.2020,16.10.2020,GPC09200000200,96.26
Stockport MBC,Corporate and Support Services,Central Support Costs,BUSINESS FORUMS INTERN,Staff Training,Human Resources  ,01.10.2020,16.10.2020,GPC09200000201,187.50
Stockport MBC,Services to Place,Highways & Transport Services,WESTMINSTER INSIGHT,Staff Training,Human Resources  ,29.09.2020,16.10.2020,GPC09200000202,216.00
Stockport MBC,Corporate and Support Services,Central Support Costs,PWC SHOP DIGITAL,Fees and Charges,Financial Services  ,29.09.2020,16.10.2020,GPC09200000203,200.00
Stockport MBC,Services to Place,Environmental & Regulatory Services,BALMERS GM LTD,Grounds Maintenance,Horticultural  ,25.09.2020,16.10.2020,GPC09200000204,284.75
Stockport MBC,Services to Place,Highways & Transport Services,PARTICIPANT UK LTD,Staff Training,Human Resources  ,11.09.2020,16.10.2020,GPC09200000205,350.00
Stockport MBC,Corporate and Support Services,Central Support Costs,THE MJ/HEMMING GROUP L,Library Equipment,Education Library Books ,10.09.2020,16.10.2020,GPC09200000206,140.00
